bitfinex/quotes_ETHUSD_20250517
["timestamp","ask_amount","ask_price","bid_price","bid_amount"]
[1747446140886,4.02819738,2482.5,2482.4,26.576]
[1747446141086,4.02808393,2482.6,2482.4,26.576]
[1747446141294,4.02819738,2482.5,2482.4,26.576]
[1747446142023,8.0,2483.2,2482.4,26.576]
[1747446142024,8.0,2483.2,2482.5,0.55]
[1747446142228,4.02819738,2482.5,2482.4,26.576]
[1747446142522,4.02810599,2482.6,2482.4,26.576]
[1747446143031,4.02819738,2482.5,2482.4,26.576]
[1747446143409,4.02819738,2482.5,2482.4,17.384]
[1747446143613,4.83382288,2482.5,2482.4,8.643]
[1747446143809,8.634,2482.5,2482.4,8.643]
[1747446144121,4.02760502,2482.9,2482.5,0.55]
[1747446144711,8.633,2483.2,2482.8,0.55]
[1747446144914,4.02723444,2483.1,2482.9,9.4498]
[1747446145886,4.02738622,2483.0,2482.9,8.643]
[1747446147336,4.02754843,2482.9,2482.8,8.643]
[1747446147826,4.02803512,2482.6,2482.5,1.3568]
[1747446148135,4.02803512,2482.6,2481.9,8.631]
[1747446148136,0.80559332,2482.6,2482.1,6.02]
[1747446148437,8.631,2482.6,2482.1,6.02]
[1747446148728,4.02834684,2482.5,2482.1,6.02]
[1747446148890,4.02838144,2482.4,2482.1,6.02]
[1747446149091,4.02838144,2482.4,2482.2,0.55]
[1747446149388,4.02827697,2482.5,2482.2,0.55]
[1747446149732,4.02788768,2482.7,2482.4,0.55]
[1747446149913,4.02731024,2483.1,2482.6,4.57795766]
[1747446150229,4.02731024,2483.1,2482.6,1.87622364]
[1747446150230,12.6572291,2483.1,2482.6,1.87622364]
[1747446150395,4.02745272,2483.0,2482.6,1.87622364]
[1747446150919,4.02755744,2482.9,2482.6,1.87622364]
[1747446151107,4.02785049,2482.8,2482.5,6.02]
[1747446151309,4.02785049,2482.8,2482.7,8.644]
[1747446152731,4.02792011,2482.7,2482.4,6.02]
[1747446152910,8.628,2482.7,2482.4,6.02]
[1747446153432,12.65595092,2482.7,2482.4,6.02]
[1747446153607,4.02803512,2482.6,2482.5,8.644]
[1747446153808,12.6558813,2482.7,2482.5,8.644]
[1747446154003,4.02803512,2482.6,2482.5,8.644]
[1747446155204,4.02819738,2482.5,2482.4,14.665]
[1747446157050,12.65410991,2482.6,2482.4,14.665]
[1747446157211,0.7617,2483.1,2482.5,0.55]
[1747446157417,4.02698899,2483.3,2482.8,4.02762784]
[1747446157708,4.02660255,2483.5,2483.0,1.3096]
[1747446157907,4.02677437,2483.4,2483.0,1.3096]
[1747446158136,4.02701377,2483.3,2483.1,2.00020678]
[1747446158435,8.625,2483.6,2483.1,2.00020678]
[1747446158639,4.02706185,2483.2,2483.1,6.02]
[1747446159128,12.65206185,2483.2,2483.1,6.02]
[1747446159932,4.02706185,2483.2,2483.1,6.02]
[1747446160118,12.65106185,2483.2,2483.1,6.02]
[1747446160326,4.02695357,2483.3,2483.1,6.02]
[1747446160496,4.02693503,2483.3,2483.1,6.02]
[1747446160897,12.64958765,2483.5,2483.2,1.3096]
[1747446161109,4.02673753,2483.4,2483.3,8.645]
[1747446161336,4.02673753,2483.4,2483.3,6.57]
[1747446161635,4.02673753,2483.4,2483.3,15.215]
[1747446162605,4.02673753,2483.4,2483.3,14.665]
[1747446164333,12.64665421,2483.5,2483.3,14.665]
[1747446164639,8.62,2483.9,2483.5,4.80138999]
[1747446164818,8.62,2483.9,2483.6,0.55]
[1747446165020,8.62,2483.9,2483.6,0.59026129]
[1747446165201,4.02583089,2484.0,2483.6,0.59026129]
[1747446165406,12.64571349,2484.1,2483.6,1.73142662]
[1747446165606,12.64571349,2484.1,2483.6,1.69116634]
[1747446165909,4.02552079,2484.2,2483.9,0.7749]
[1747446166107,4.02562586,2484.1,2483.9,15.4149]
[1747446166761,8.619,2484.2,2483.9,15.4149]
[1747446167039,5.66575116,2484.8,2483.9,15.4149]
[1747446167040,8.617,2484.3,2484.0,2.14649]
[1747446167239,8.617,2484.4,2484.0,2.14649]
[1747446167443,4.02559746,2484.2,2484.0,0.55]
[1747446167812,4.02527875,2484.3,2484.0,0.55]
[1747446167813,4.02560283,2484.1,2484.0,0.55]
[1747446169252,4.02550691,2484.2,2484.0,0.55]
[1747446169454,4.02550691,2484.2,2484.1,8.619]
[1747446170249,4.02526313,2484.4,2484.1,8.619]
[1747446170557,8.614,2484.3,2484.1,8.619]
[1747446170760,4.02544078,2484.2,2484.1,8.619]
[1747446171972,4.02544078,2484.2,2483.9,0.7749]
[1747446172119,12.63928287,2484.3,2483.9,0.7749]
[1747446172120,4.02576489,2484.0,2483.9,0.7749]
[1747446172460,4.02568685,2484.1,2483.9,9.3929]
[1747446172647,4.02576489,2484.0,2483.9,9.3929]
[1747446172841,4.025499,2484.2,2483.9,9.3929]
[1747446173048,4.02576489,2484.0,2483.9,9.3929]
[1747446173752,4.02569288,2484.1,2483.9,9.3929]
[1747446173919,4.02576489,2484.0,2483.9,9.3929]
[1747446178561,4.02608905,2483.8,2483.7,8.617]
[1747446178717,8.61,2484.2,2483.7,11.29833]
[1747446179060,12.63061477,2484.1,2483.7,11.29833]
[1747446179234,4.02561477,2484.1,2483.7,11.29833]
[1747446180256,12.63045388,2484.2,2483.7,2.68133]
[1747446180257,4.02592893,2483.9,2483.7,2.68133]
[1747446180423,4.02592893,2483.9,2483.8,8.617]
[1747446180956,4.02625115,2483.7,2483.5,0.8063]
[1747446181156,4.02661926,2483.5,2483.2,9.4233]
[1747446181356,4.02681418,2483.4,2483.2,9.98003581]
[1747446182262,8.602,2483.7,2483.3,4.57688288]
[1747446182439,4.02616384,2483.8,2483.3,4.57681146]
[1747446182440,12.62809624,2483.8,2483.3,4.57681146]
[1747446182756,0.794,2484.2,2483.2,14.00708613]
[1747446182757,0.794,2484.2,2483.6,4.02641327]
[1747446183088,4.02545267,2484.2,2483.9,0.55]
[1747446183286,4.02545267,2484.2,2483.9,1.86931678]
[1747446183788,0.794,2484.5,2483.9,1.86931678]
[1747446183989,2.78016215,2485.2,2484.3,0.55]
[1747446184174,1.98616215,2485.2,2484.7,0.7919]
[1747446184377,1.98616215,2485.2,2484.4,14.637]
[1747446184378,1.98616215,2485.2,2485.1,5.36588293]
[1747446184553,1.98616215,2485.2,2485.1,6.35988571]
[1747446184755,0.3413716,2485.2,2485.1,14.40011587]
[1747446184953,3.20553487,2486.3,2485.7,1.3419]
[1747446185198,4.02253883,2486.0,2485.8,0.55]
[1747446185401,6.61482507,2485.9,2485.8,8.617]
[1747446185691,2.59213711,2485.9,2485.8,8.617]
[1747446185890,6.61482507,2485.9,2485.8,9.167]
[1747446186182,2.59213711,2485.9,2485.8,9.167]
[1747446187007,12.6203768,2486.1,2485.8,9.167]
[1747446187163,4.0223768,2486.1,2485.8,9.167]
[1747446187369,4.02236756,2486.1,2485.9,0.55]
[1747446187569,8.598,2486.2,2485.9,0.55]
[1747446187967,4.02214217,2486.3,2485.9,0.55]
[1747446188169,1.98967415,2486.4,2486.3,0.55]
[1747446188494,1.98967415,2486.4,2486.3,9.164]
[1747446188799,1.98967415,2486.4,2486.3,15.29086732]
[1747446189103,1.98967415,2486.4,2486.3,23.29086732]
[1747446190096,4.01985127,2487.7,2487.1,4.57073191]
[1747446190252,4.01985127,2487.7,2487.3,0.55]
[1747446190455,4.01991975,2487.7,2487.3,0.55]
[1747446190958,4.0199401,2487.6,2487.1,0.55]
[1747446191162,8.59,2488.0,2487.3,0.55]
[1747446191395,4.02001473,2487.6,2487.3,0.55]
[1747446191866,4.02026212,2487.4,2487.3,0.55]
[1747446192694,4.02042375,2487.3,2487.2,9.162]
[1747446193380,8.59,2487.8,2487.0,18.1662]
[1747446193575,4.02058539,2487.2,2487.1,0.55]
[1747446193777,4.02074705,2487.1,2487.0,17.38]
[1747446194087,4.02074705,2487.1,2487.0,17.93]
[1747446195117,4.02074705,2487.1,2487.0,17.38]
[1747446195902,8.584,2487.4,2487.0,17.38]
[1747446196068,4.02063619,2487.2,2487.0,17.38]
[1747446196702,4.02063619,2487.2,2487.1,8.584]
[1747446198907,4.02074705,2487.1,2487.0,17.38]
[1747446199075,4.02074705,2487.1,2487.0,25.964]
[1747446201312,12.02074705,2487.1,2487.0,17.38]
[1747446201866,4.02074705,2487.1,2487.0,17.38]
[1747446202702,4.02074705,2487.1,2487.0,17.93]
[1747446203906,4.02036388,2487.4,2487.1,0.55]
[1747446204106,4.02036388,2487.4,2487.2,6.02]
[1747446204420,4.02036388,2487.4,2487.3,6.02]
[1747446207186,4.02036388,2487.4,2487.3,14.602]
[1747446208316,4.02036388,2487.4,2487.3,8.582]
[1747446208920,0.7734,2487.8,2487.3,8.582]
[1747446209121,0.8221,2488.2,2487.4,0.55]
[1747446209300,4.8411246,2488.2,2487.6,0.55]
[1747446209500,4.0197773,2487.7,2487.6,0.55]
[1747446209699,9.3921,2488.2,2487.6,6.57]
[1747446209892,4.01944896,2488.0,2487.7,6.02]
[1747446210092,0.8221,2488.5,2487.8,15.3643]
[1747446210421,4.01901058,2488.2,2487.8,15.3643]
[1747446210628,4.0188713,2488.3,2487.9,19.85239364]
[1747446210996,4.01837272,2488.6,2488.0,6.02]
[1747446211194,4.01818774,2488.7,2488.2,0.55]
[1747446211421,4.01800817,2488.8,2488.4,0.55]
[1747446211724,4.01800817,2488.8,2488.5,1.5152]
[1747446212141,0.7764,2489.5,2488.6,6.57]
[1747446212303,12.58422571,2489.3,2488.8,0.55]
[1747446212506,4.01752162,2489.1,2488.9,8.581]
[1747446212818,4.01664871,2489.7,2489.0,0.55]
[1747446212819,4.01705012,2489.4,2489.0,0.55]
[1747446213032,4.01705012,2489.4,2489.0,1.96242777]
[1747446213033,4.01707642,2489.4,2489.0,1.96242777]
[1747446213350,4.01729452,2489.3,2489.0,1.96242777]
[1747446213644,4.017492,2489.2,2489.0,1.96242777]
[1747446213811,4.01751637,2489.1,2489.0,0.55]
[1747446215147,8.0,2489.5,2489.0,9.129]
[1747446215148,4.01737851,2489.2,2489.0,9.129]
[1747446215345,4.01767778,2489.0,2488.9,0.7811]
[1747446215532,4.01747632,2489.2,2488.9,8.579]
[1747446215724,4.01751637,2489.1,2489.0,0.55]
[1747446216127,4.01737671,2489.2,2489.0,0.55]
[1747446216429,4.01751637,2489.1,2489.0,0.55]
[1747446216904,4.01742547,2489.2,2489.0,0.55]
[1747446217108,4.01751637,2489.1,2489.0,0.55]
[1747446217528,4.01767778,2489.0,2488.9,8.579]
[1747446217845,4.01751637,2489.1,2489.0,0.55]
[1747446218016,4.01740352,2489.2,2489.0,0.55]
[1747446218733,0.7764,2489.8,2489.0,3.199]
[1747446219041,8.558,2489.7,2489.2,1.3192]
[1747446219240,4.01713353,2489.4,2489.2,1.3192]
[1747446219443,4.01693257,2489.5,2489.2,1.3192]
[1747446219644,4.01719358,2489.3,2489.2,1.71602]
[1747446220615,4.0173837,2489.2,2489.1,0.55]
[1747446220815,4.0173837,2489.2,2489.0,2.649]
[1747446221014,4.0173837,2489.2,2489.1,8.576]
[1747446221339,4.01767778,2489.0,2488.9,1.3192]
[1747446221515,4.01759821,2489.1,2489.0,0.55]
[1747446221953,4.01759821,2489.1,2488.9,8.576]
[1747446221954,4.01767778,2489.0,2488.9,8.576]
[1747446222428,4.01767778,2489.0,2488.5,1.5152]
[1747446222429,4.0184629,2488.6,2488.5,8.576]
[1747446222952,4.8051629,2488.6,2488.5,8.576]
[1747446223262,4.01896953,2488.2,2488.1,17.352]
[1747446223418,4.01896953,2488.2,2488.1,28.92073516]
[1747446223613,4.01896953,2488.2,2488.1,20.34473516]
[1747446223927,4.0192926,2488.0,2487.9,8.576]
[1747446224529,12.57116673,2488.1,2487.9,8.576]
[1747446225549,4.0192926,2488.0,2487.9,8.576]
[1747446226153,4.0190054,2488.2,2488.0,0.55]
[1747446226340,4.0189834,2488.2,2488.0,0.55]
[1747446226542,0.7867,2488.6,2488.0,1.4626]
[1747446226746,4.01893301,2488.3,2488.1,6.02]
[1747446226943,4.01896953,2488.2,2488.1,6.57]
[1747446227326,4.01896953,2488.2,2488.1,6.02]
[1747446228554,12.81036953,2488.2,2488.1,6.02]
[1747446228964,4.0192926,2488.0,2487.9,8.576]
[1747446229142,4.0201005,2487.5,2487.4,17.352]
[1747446229340,4.0201005,2487.5,2487.4,25.905]
[1747446229851,0.7914,2487.9,2487.4,25.905]
[1747446230027,4.01993889,2487.6,2487.5,4.36162806]
[1747446230234,4.01983218,2487.7,2487.5,4.36162806]
[1747446230565,4.01993889,2487.6,2487.5,4.36162806]
[1747446230766,4.0201005,2487.5,2487.4,31.925]
[1747446230942,4.0201005,2487.5,2487.4,25.905]
[1747446231261,4.0201005,2487.5,2487.4,26.455]
[1747446231861,4.01982385,2487.7,2487.4,26.455]
[1747446232159,4.01965575,2487.8,2487.6,0.55]
[1747446232466,5.71090036,2488.7,2487.8,0.55]
[1747446232467,8.547,2488.4,2487.8,0.55]
[1747446232759,4.0192926,2488.0,2487.9,9.104]
[1747446232939,4.01915713,2488.1,2487.8,6.02]
[1747446233147,4.01915713,2488.1,2487.9,9.23629]
[1747446233640,4.01940807,2488.0,2487.9,9.78629]
[1747446235868,8.546,2488.3,2488.0,0.55]
[1747446235869,4.01888174,2488.3,2488.0,0.55]
[1747446236037,12.56388174,2488.3,2488.0,0.55]
[1747446236238,4.01913106,2488.1,2488.0,0.55]
[1747446236552,4.01913106,2488.1,2488.0,2.130629]
[1747446237069,4.01913106,2488.1,2487.9,15.80629]
[1747446237070,4.0192926,2488.0,2487.9,15.80629]
[1747446237256,4.0192926,2488.0,2487.9,15.124]
[1747446238242,4.0192926,2488.0,2487.9,6.02]
[1747446238456,4.01945415,2487.9,2487.8,8.554]
[1747446238986,4.01993889,2487.6,2487.5,6.02]
[1747446239138,4.01993889,2487.6,2487.5,14.574]
[1747446240368,4.01993889,2487.6,2487.5,6.02]
[1747446241349,4.02042375,2487.3,2487.2,8.554]
[1747446242370,4.0210704,2486.9,2486.8,6.02]
[1747446242578,4.02155553,2486.6,2486.5,6.02]
[1747446242748,4.02193509,2486.4,2486.2,6.02]
[1747446242950,8.54,2486.4,2486.3,1.53748]
[1747446243435,4.02179186,2486.5,2486.3,1.53748]
[1747446244075,12.56060784,2486.6,2486.3,1.53748]
[1747446244380,4.02187902,2486.4,2486.3,1.53748]
[1747446245074,8.539,2486.6,2486.4,0.55]
[1747446245250,8.539,2486.6,2486.5,0.208748]
[1747446245852,12.56055553,2486.6,2486.5,0.208748]
[1747446246048,4.02171727,2486.5,2486.2,6.02]
[1747446246353,8.539,2486.6,2486.2,6.57]
[1747446246548,4.02171727,2486.5,2486.2,6.57]
[1747446246776,4.02187902,2486.4,2486.2,6.57]
[1747446247076,4.02236434,2486.1,2486.0,17.358]
[1747446247776,0.7737,2486.6,2486.0,17.908]
[1747446247979,4.02206102,2486.3,2486.0,21.00868253]
[1747446248155,4.02206102,2486.3,2486.1,0.55]
[1747446248751,4.02196199,2486.4,2486.1,0.55]
[1747446249055,4.02207414,2486.3,2486.1,1.3337]
[1747446249250,4.02220255,2486.2,2486.1,0.55]
[1747446250352,0.7737,2486.6,2486.1,4.16346825]
[1747446250666,8.536,2486.5,2486.1,4.16346825]
[1747446250981,4.02182078,2486.5,2486.1,4.16346825]
[1747446251175,4.0218001,2486.5,2486.1,4.16346825]
[1747446251381,8.536,2486.6,2486.1,4.16346825]
[1747446251577,0.7737,2486.9,2486.3,0.55]
[1747446251741,8.536,2487.1,2486.5,4.5715632]
[1747446251947,8.536,2487.1,2486.5,6.57]
[1747446252147,4.02139381,2486.7,2486.5,6.02]
[1747446252351,8.535,2486.6,2486.5,6.02]
[1747446252549,0.791,2486.8,2486.3,6.02]
[1747446252863,4.02140815,2486.7,2486.3,7.97249683]
[1747446253065,4.02112095,2486.9,2486.4,0.55]
[1747446253269,0.791,2487.6,2486.6,0.7835]
[1747446253465,0.791,2487.9,2487.4,4.02025508]
[1747446253679,4.0199178,2487.7,2487.5,8.558]
[1747446253882,4.01993889,2487.6,2487.5,8.558]
[1747446255785,0.791,2487.9,2487.5,8.558]
[1747446255988,4.01936596,2488.0,2487.6,1.4058]
[1747446256183,0.8012,2488.5,2487.8,0.55]
[1747446256401,4.01913995,2488.1,2487.9,6.57]
[1747446256704,4.01889851,2488.3,2488.1,0.55]
[1747446256870,4.01896953,2488.2,2488.1,6.57]
[1747446257391,4.01887805,2488.3,2488.1,6.57]
[1747446257755,4.0188893,2488.3,2488.1,6.57]
[1747446257952,0.8012,2488.9,2488.1,8.0803]
[1747446258207,4.01817583,2488.7,2488.1,12.09932754]
[1747446258766,4.01833446,2488.6,2488.1,12.09932754]
[1747446259470,8.529,2489.2,2488.3,0.55]
[1747446259793,9.3292,2490.1,2489.2,0.55]
[1747446260102,4.01715991,2489.4,2489.3,8.531]
[1747446260302,4.01666466,2489.7,2489.3,9.081]
[1747446260501,4.01664091,2489.7,2489.3,9.081]
[1747446260654,4.01676304,2489.6,2489.3,9.081]
[1747446260852,4.01638685,2489.8,2489.1,18.176]
[1747446261159,4.01703221,2489.4,2489.3,0.55]
[1747446261354,4.01693985,2489.5,2489.3,0.55]
[1747446261676,4.01693712,2489.5,2489.3,0.55]
[1747446262296,4.01719358,2489.3,2489.2,8.531]
[1747446262920,4.01719358,2489.3,2488.9,0.55]
[1747446262921,4.01767778,2489.0,2488.9,0.55]
[1747446263204,0.8012,2489.4,2488.8,8.529]
[1747446263501,4.0178392,2488.9,2488.8,8.529]
[1747446263867,8.523,2489.1,2488.8,8.529]
[1747446264102,4.0178392,2488.9,2488.8,8.529]
[1747446264305,4.01848503,2488.5,2488.4,17.356]
[1747446265017,4.01848503,2488.5,2488.4,17.906]
[1747446265224,8.522,2488.7,2488.4,17.356]
[1747446265423,4.01840147,2488.6,2488.4,17.356]
[1747446265925,4.01848503,2488.5,2488.1,1.5103]
[1747446266089,4.01858856,2488.5,2488.1,8.528]
[1747446266292,8.522,2488.7,2488.2,0.55]
[1747446266493,4.01850892,2488.5,2488.2,0.55]
[1747446266693,4.0182162,2488.7,2488.2,0.55]
[1747446266911,8.521,2488.6,2488.3,1.30969981]
[1747446267112,12.53939608,2488.6,2488.3,1.30969981]
[1747446267706,4.01849876,2488.5,2488.3,1.30969981]
[1747446267901,4.01864651,2488.4,2488.3,8.528]
[1747446268796,8.521,2488.6,2488.3,8.528]
[1747446268797,12.53734495,2488.6,2488.3,8.528]
[1747446268997,12.53734495,2488.6,2488.3,9.3808]
[1747446269734,4.01818034,2488.7,2488.3,9.3808]
[1747446270031,4.01835285,2488.6,2488.4,0.55]
[1747446270524,4.01864651,2488.4,2488.3,0.55]
[1747446270735,4.01864651,2488.4,2488.3,9.078]
[1747446270930,12.5362131,2488.7,2488.3,9.9858]
[1747446271227,4.01862743,2488.5,2488.3,9.078]
[1747446271596,12.53517159,2488.7,2488.4,0.55]
[1747446271792,4.01808301,2488.8,2488.4,0.55]
[1747446272000,12.53508301,2488.8,2488.4,1.374]
[1747446272206,4.01759919,2489.1,2488.6,0.55]
[1747446272405,4.0177064,2489.0,2488.7,0.4568485]
[1747446272635,4.0177064,2489.0,2488.8,8.528]
[1747446272841,4.0178392,2488.9,2488.8,8.528]
[1747446274545,4.01816209,2488.7,2488.5,0.55]
[1747446274706,4.0180738,2488.8,2488.6,8.527]
[1747446275036,4.0180738,2488.8,2488.7,8.527]
[1747446275629,4.01830969,2488.7,2488.6,9.077]
[1747446276026,4.01808496,2488.8,2488.6,9.077]
[1747446276225,4.01808206,2488.8,2488.6,9.077]
[1747446276907,12.53108206,2488.8,2488.6,9.077]
[1747446277122,4.01816209,2488.7,2488.6,9.077]
[1747446279550,8.513,2488.8,2488.6,9.077]
[1747446279749,4.01710739,2489.4,2488.6,9.077]
[1747446279750,4.01784893,2488.9,2488.7,0.55]
[1747446280454,4.01773862,2489.0,2488.7,1.3497]
[1747446281159,8.51,2489.6,2488.9,0.55]
[1747446281353,4.01743591,2489.2,2489.0,0.55]
[1747446281654,4.01735497,2489.2,2489.1,0.55]
[1747446281860,4.01747638,2489.2,2489.1,8.527]
[1747446282352,4.51710393,2489.4,2489.1,8.527]
[1747446282552,4.01735497,2489.2,2489.1,9.077]
[1747446282858,4.01735497,2489.2,2489.1,8.527]
[1747446283159,4.51707813,2489.4,2489.0,8.527]
[1747446283371,0.5,2489.4,2489.1,0.55]
[1747446283656,12.52448898,2489.8,2489.3,0.55]
[1747446283953,4.0167958,2489.6,2489.3,0.55]
[1747446284162,4.01702029,2489.5,2489.3,0.55]
[1747446284854,4.01669589,2489.7,2489.3,0.55]
[1747446285053,4.01678749,2489.6,2489.3,1.68792373]
[1747446285366,4.01672242,2489.6,2489.3,1.68792373]
[1747446285520,4.01663382,2489.7,2489.4,8.526]
[1747446285720,12.52263382,2489.7,2489.4,14.546]
[1747446286460,4.01678368,2489.6,2489.4,14.546]
[1747446286756,8.7833,2490.2,2489.4,10.20757237]
[1747446287053,4.01687085,2489.5,2489.4,10.75757237]
[1747446287260,8.504,2490.1,2489.4,8.505]
[1747446287261,4.01604302,2490.1,2489.4,8.505]
[1747446287454,8.504,2489.7,2489.4,14.525]
[1747446287951,4.01676335,2489.6,2489.4,14.525]
[1747446288144,4.01676335,2489.6,2489.4,8.505]
[1747446288660,4.01687085,2489.5,2489.4,8.505]
[1747446288858,4.01670951,2489.6,2489.0,6.02]
[1747446289164,9.2863,2489.7,2489.2,0.55]
[1747446289165,4.0170262,2489.5,2489.2,0.55]
[1747446289334,4.01712152,2489.4,2489.2,0.55]
[1747446289655,0.5,2489.3,2489.1,0.55]
[1747446289853,0.5,2489.3,2489.2,9.054]
[1747446290156,4.01709246,2489.4,2489.2,9.054]
[1747446291466,4.01709246,2489.4,2489.2,10.629518]
[1747446291760,12.51692868,2489.5,2489.2,10.629518]
[1747446292258,4.01706758,2489.4,2489.2,10.629518]
[1747446292757,12.51693986,2489.5,2489.2,10.629518]
[1747446293150,8.499,2489.5,2489.3,0.55]
[1747446293458,8.499,2489.5,2489.4,2.01467958]
[1747446293854,0.8001,2490.0,2489.5,0.55]
[1747446294046,8.498,2489.8,2489.5,6.57]
[1747446294251,0.8001,2490.0,2489.5,6.57]
[1747446294429,4.01646491,2489.8,2489.5,6.57]
[1747446294620,4.01646491,2489.8,2489.6,0.88210796]
[1747446294826,4.01566011,2490.3,2490.0,0.55]
[1747446295038,19.71588906,2490.4,2490.0,0.55]
[1747446295039,4.01590297,2490.1,2490.0,6.57]
[1747446295549,4.01580892,2490.2,2490.0,6.57]
[1747446295770,4.01580892,2490.2,2490.0,7.30564]
[1747446296058,4.01590297,2490.1,2490.0,7.30564]
[1747446296261,4.01590297,2490.1,2490.0,6.75564]
[1747446296431,4.01590297,2490.1,2490.0,6.02]
[1747446297764,12.51090297,2490.1,2490.0,6.02]
[1747446298459,4.016151,2490.0,2489.8,8.504]
[1747446299063,4.01622555,2489.9,2489.8,9.054]
[1747446299243,4.01622555,2489.9,2489.8,12.5159708]
[1747446299443,4.01638685,2489.8,2489.7,6.57]
[1747446299648,4.01638685,2489.8,2489.7,9.053]
[1747446299843,4.01654817,2489.7,2489.6,17.898]
[1747446300157,4.01630032,2489.9,2489.6,25.851]
[1747446300360,12.50930032,2489.9,2489.6,25.851]
[1747446300549,8.492,2490.0,2489.7,3.7371]
[1747446300944,12.50808041,2490.0,2489.7,3.7371]
[1747446301461,4.01631564,2489.9,2489.7,3.7371]
[1747446301673,8.492,2490.0,2489.7,3.1871]
[1747446301840,4.01654817,2489.7,2489.6,17.348]
[1747446302272,0.7844,2489.9,2489.5,14.523]
[1747446302468,4.01670951,2489.6,2489.5,14.523]
[1747446302670,4.01670951,2489.6,2489.5,6.02]
[1747446303303,4.38802414,2489.6,2489.5,6.02]
[1747446304113,4.01767778,2489.0,2488.9,31.868]
[1747446304337,8.489,2489.2,2488.9,25.848]
[1747446304480,12.50642848,2489.2,2488.9,25.848]
[1747446304680,4.01754996,2489.1,2488.9,25.848]
[1747446305188,8.489,2489.2,2489.0,0.55]
[1747446305393,4.01751637,2489.1,2488.9,25.848]
[1747446305591,4.01767778,2489.0,2488.8,6.02]
[1747446305828,4.0178392,2488.9,2488.8,6.02]
[1747446306308,4.01832355,2488.6,2488.5,6.02]
[1747446306626,4.01816209,2488.7,2488.3,6.02]
[1747446306627,8.488,2488.7,2488.3,6.02]
[1747446306784,4.01809377,2488.8,2488.3,10.03880466]
[1747446306987,4.0185948,2488.5,2488.3,6.02]
[1747446307175,4.01864651,2488.4,2488.3,9.28362]
[1747446307381,4.0185674,2488.5,2488.3,17.78662]
[1747446307890,4.01864651,2488.4,2488.3,6.02]
[1747446308414,4.0185613,2488.5,2488.3,6.02]
[1747446308592,4.01864651,2488.4,2488.3,6.02]
[1747446309381,9.2597,2488.6,2487.9,6.02]
[1747446309588,4.0192926,2488.0,2487.9,6.02]
[1747446309799,4.0192926,2488.0,2487.8,8.504]
[1747446309997,4.0192926,2488.0,2487.8,10.06278397]
[1747446310915,4.01945415,2487.9,2487.8,8.504]
[1747446311119,4.0201005,2487.5,2487.4,8.505]
[1747446311289,4.02026212,2487.4,2487.3,6.02]
[1747446311490,4.02018081,2487.5,2487.3,6.02]
[1747446311686,8.486,2487.5,2487.3,7.4725]
[1747446312043,4.01937783,2488.0,2487.5,0.7509]
[1747446312325,8.486,2488.0,2487.6,15.075]
[1747446312523,12.50543535,2488.0,2487.6,15.075]
[1747446312728,4.01948264,2487.9,2487.6,17.05961513]
[1747446312924,4.01937287,2488.0,2487.7,6.02]
[1747446313124,12.50437287,2488.0,2487.7,6.02]
[1747446313496,4.01946671,2487.9,2487.7,6.02]
[1747446313691,4.01961572,2487.8,2487.7,6.02]
[1747446314095,4.80921572,2487.8,2487.7,6.02]
[1747446314731,12.80921572,2487.8,2487.7,6.02]
[1747446314920,21.29421572,2487.8,2487.7,6.02]
[1747446316121,4.02058539,2487.2,2487.0,6.7709]
[1747446316324,4.02074705,2487.1,2487.0,8.484]
[1747446316526,4.02074705,2487.1,2487.0,14.504]
[1747446316932,4.02074705,2487.1,2487.0,6.02]
[1747446317436,4.02090872,2487.0,2486.5,8.485]
[1747446317635,8.0,2487.1,2486.5,8.485]
[1747446318201,4.02106841,2487.0,2486.6,0.55]
[1747446318416,12.50343303,2487.3,2486.9,0.55]
[1747446318616,12.50353267,2487.3,2487.0,8.485]
[1747446319110,4.02074705,2487.1,2487.0,8.485]
[1747446319311,4.02132661,2486.8,2486.7,8.485]
[1747446319540,4.02132661,2486.8,2486.5,0.55]
[1747446319752,4.02132661,2486.8,2486.4,0.55]
[1747446319753,4.02139381,2486.7,2486.4,8.485]
[1747446319951,4.02144384,2486.7,2486.4,8.485]
[1747446320246,4.02139541,2486.7,2486.4,8.485]
[1747446320940,4.02164711,2486.6,2486.4,8.485]
[1747446321650,4.02146554,2486.7,2486.4,8.485]
[1747446322155,4.02156241,2486.6,2486.4,8.485]
[1747446322330,4.02171727,2486.5,2486.4,8.485]
[1747446322529,4.02139381,2486.7,2486.4,8.485]
[1747446323069,4.02106085,2487.0,2486.4,9.40884]
[1747446323250,12.50308237,2486.9,2486.6,0.55]
[1747446323411,12.50308237,2486.9,2486.5,0.55]
[1747446323616,4.02138996,2486.8,2486.5,8.487]
[1747446323815,4.02166772,2486.6,2486.5,8.487]
[1747446324467,4.02166772,2486.6,2486.3,0.7534]
[1747446324468,4.02187782,2486.5,2486.3,0.7534]
[1747446324668,4.02187902,2486.4,2486.3,8.487]
[1747446324950,12.50287902,2486.4,2486.3,8.487]
[1747446325311,4.02187902,2486.4,2486.3,8.487]
[1747446325509,12.50287902,2486.4,2486.3,8.487]
[1747446326152,4.02252614,2486.0,2485.9,8.489]
[1747446326359,4.02245186,2486.1,2485.9,8.489]
[1747446326560,0.7783,2486.0,2485.4,17.362]
[1747446326854,12.50382656,2485.9,2485.5,8.489]
[1747446327078,4.02254051,2486.0,2485.5,8.489]
[1747446327223,8.481,2485.8,2485.5,8.489]